bitfinex/quotes_ETHUSD_20241216
["timestamp","ask_amount","ask_price","bid_price","bid_amount"]
[1734384379430,0.18176364,4034.1,4033.1,0.7561]
[1734384379632,0.55,4034.0,4033.1,0.7561]
[1734384379939,0.55,4034.4,4033.1,0.7561]
[1734384380137,0.55,4034.2,4033.1,0.7561]
[1734384380452,0.55,4034.0,4033.1,0.7561]
[1734384380605,0.55,4034.2,4033.1,0.7561]
[1734384380941,0.55,4034.0,4033.1,0.7561]
[1734384381543,0.55,4034.4,4033.1,0.7561]
[1734384381749,0.55,4034.2,4033.1,0.7561]
[1734384381967,1.16586935,4034.7,4032.6,0.12369244]
[1734384381968,0.29077494,4034.6,4033.5,0.7561]
[1734384382129,0.73181896,4034.5,4033.5,0.78088979]
[1734384382322,0.55,4034.3,4033.5,0.78088979]
[1734384382538,0.55,4034.3,4033.5,0.7561]
[1734384382933,0.1684489,4035.0,4033.8,3.0]
[1734384383170,0.1684489,4035.0,4033.9,0.8205]
[1734384383171,0.73177017,4034.9,4033.9,0.8205]
[1734384383322,0.55,4034.7,4033.9,0.8205]
[1734384383523,0.55,4034.5,4033.9,0.8205]
[1734384383971,0.55,4034.9,4033.9,0.8205]
[1734384384167,0.55,4034.7,4033.9,0.8205]
[1734384384372,0.18171249,4034.6,4033.9,0.8205]
[1734384387142,0.55,4034.5,4033.9,0.8205]
[1734384387342,0.55,4034.7,4033.9,0.8205]
[1734384387578,0.55,4034.5,4033.9,0.8205]
[1734384388284,0.55,4034.9,4033.9,0.8205]
[1734384388485,0.55,4034.7,4033.9,0.8205]
[1734384388648,0.55,4034.5,4033.9,0.8205]
[1734384389049,0.55,4034.9,4033.9,0.8205]
[1734384389357,0.55,4034.7,4033.9,0.8205]
[1734384389554,0.18183767,4034.6,4033.9,0.8205]
[1734384389749,0.18183767,4034.5,4033.9,0.8205]
[1734384389941,0.55,4034.7,4033.9,0.8205]
[1734384390143,0.18186761,4034.6,4034.3,0.8036]
[1734384390347,0.1684489,4035.0,4034.5,2.52612257]
[1734384390574,0.1684489,4035.0,4034.6,0.8036]
[1734384395046,0.1684489,4035.0,4034.0,2.52612257]
[1734384395047,0.1684489,4035.0,4034.1,0.8246]
[1734384395460,0.18168138,4034.9,4034.1,0.8246]
[1734384396562,0.1684489,4035.0,4034.1,0.8246]
[1734384396762,0.18166831,4034.9,4034.1,0.8246]
[1734384399613,0.1684489,4035.0,4034.1,0.8246]
[1734384399823,0.18196102,4034.9,4034.1,0.8246]
[1734384400688,0.55,4034.8,4034.1,0.8246]
[1734384400926,0.18196102,4034.7,4034.1,0.8246]
[1734384402218,0.18196102,4034.6,4034.1,0.8246]
[1734384402423,0.18196102,4034.5,4034.1,0.8246]
[1734384402761,0.18196102,4034.4,4034.1,0.8246]
[1734384402935,0.18257279,4034.7,4034.1,0.8246]
[1734384403147,0.18257279,4034.6,4034.1,0.8246]
[1734384403456,0.18257279,4034.5,4034.1,0.8246]
[1734384403620,0.18257279,4034.4,4034.1,0.8246]
[1734384403819,0.18257279,4034.3,4034.1,0.8246]
[1734384404141,0.18257279,4034.2,4034.1,0.8246]
[1734384404447,0.55,4034.7,4034.1,0.8246]
[1734384404662,0.41095784,4034.6,4034.1,0.8246]
[1734384404862,0.41095784,4034.5,4034.1,0.8246]
[1734384405074,0.41095784,4034.4,4034.1,0.8246]
[1734384405256,0.41095784,4034.3,4034.1,0.8246]
[1734384405430,0.41095784,4034.2,4034.1,0.8246]
[1734384409335,0.4113114,4034.2,4034.1,0.8246]
[1734384412350,1.06940965,4034.2,4034.1,0.8246]
[1734384412551,0.41183948,4034.2,4034.1,0.8246]
[1734384413583,0.70480087,4034.2,4034.1,0.8246]
[1734384414085,1.07078266,4034.2,4034.1,0.8246]
[1734384414280,0.70480087,4034.2,4034.1,0.8246]
[1734384414887,0.41183948,4034.2,4034.1,0.8246]
[1734384415256,0.55,4034.9,4034.1,0.8246]
[1734384415550,1.22564662,4034.8,4034.1,0.8246]
[1734384415780,0.59502874,4034.7,4034.1,0.8246]
[1734384416003,0.54925012,4034.6,4034.1,0.8246]
[1734384416307,1.07103773,4034.5,4034.1,0.8246]
[1734384416509,1.07103773,4034.4,4034.1,0.8246]
[1734384416683,1.07103773,4034.3,4034.1,0.8246]
[1734384417004,0.15459489,4034.8,4034.1,0.8246]
[1734384417005,1.07103773,4034.2,4034.1,0.8246]
[1734384420314,1.07103773,4034.2,4033.7,0.781]
[1734384420485,1.07103773,4034.1,4033.7,0.781]
[1734384420699,1.07103773,4034.0,4033.7,0.781]
[1734384420873,0.77810434,4033.9,4033.7,0.781]
[1734384421071,0.77810434,4033.8,4033.7,0.781]
[1734384421801,0.77808543,4033.8,4033.7,0.781]
[1734384422006,0.77808543,4033.8,4033.3,0.781]
[1734384422317,1.07098855,4033.7,4033.3,0.781]
[1734384422517,1.07098855,4033.6,4033.3,0.781]
[1734384422674,1.07098855,4033.5,4033.3,0.781]
[1734384422996,1.07098855,4033.4,4033.3,0.781]
[1734384423206,0.77808543,4033.4,4033.3,0.781]
[1734384423400,1.07098855,4033.4,4032.8,0.781]
[1734384423586,1.91735285,4033.3,4032.8,0.781]
[1734384423774,1.07098855,4033.2,4032.8,0.781]
[1734384423976,1.07098855,4033.1,4032.8,0.781]
[1734384424301,0.77808543,4033.0,4032.8,0.781]
[1734384424610,0.41155854,4032.9,4032.8,0.781]
[1734384427239,0.41155854,4032.9,4032.8,3.30712257]
[1734384427996,0.41115582,4032.9,4032.8,3.30712257]
[1734384428840,0.41115582,4032.9,4032.8,0.781]
[1734384429142,0.41115582,4032.9,4032.5,3.0]
[1734384429438,0.41115582,4032.8,4032.5,3.0]
[1734384429667,1.47304932,4033.3,4032.5,3.0]
[1734384429668,0.41115582,4032.7,4032.5,3.0]
[1734384429795,1.47304932,4033.3,4032.5,3.0]
[1734384429796,0.65784932,4033.3,4032.6,0.7781959]
[1734384429996,1.01944182,4034.4,4033.2,3.0]
[1734384430205,0.41043837,4034.3,4034.1,0.7534]
[1734384430434,0.15459489,4034.8,4034.1,0.7534]
[1734384430435,0.41043837,4034.2,4034.1,0.7534]
[1734384430634,0.41043837,4034.2,4033.8,0.7534]
[1734384430844,0.41043837,4034.1,4033.8,0.7534]
[1734384430997,0.36483411,4034.6,4033.8,0.7534]
[1734384430998,0.41043837,4034.0,4033.8,0.7534]
[1734384431341,0.6567014,4034.7,4033.8,0.7534]
[1734384431648,0.41046045,4034.6,4034.0,2.52612257]
[1734384431809,0.41046045,4034.5,4034.0,2.52612257]
[1734384432168,0.36483411,4034.8,4033.8,0.7534]
[1734384432169,0.41045763,4034.4,4033.8,0.7534]
[1734384432354,0.41045763,4034.3,4033.8,0.7534]
[1734384432514,0.41045763,4034.2,4033.8,0.7534]
[1734384432699,1.31132433,4034.6,4033.8,0.7534]
[1734384432700,0.41045763,4034.1,4033.8,0.7534]
[1734384432906,0.8137,4033.9,4033.1,3.30212257]
[1734384433101,0.96045763,4033.8,4033.1,3.30212257]
[1734384433347,0.41045763,4033.7,4033.1,3.30212257]
[1734384433648,0.41045763,4033.6,4033.1,3.30212257]
[1734384433812,0.41045763,4033.5,4033.1,3.30212257]
[1734384434014,0.41045763,4033.4,4033.1,3.30212257]
[1734384434343,0.22803106,4033.3,4033.2,3.0]
[1734384434543,0.41040447,4033.3,4033.2,3.0]
[1734384435043,0.41033133,4033.3,4033.2,3.0]
[1734384435246,0.41033133,4033.3,4032.7,2.52612257]
[1734384435447,0.41033133,4033.2,4032.7,2.52612257]
[1734384435745,0.41033133,4033.1,4032.7,2.52612257]
[1734384435929,0.7959,4033.2,4032.7,2.52612257]
[1734384435930,0.41033133,4033.0,4032.7,2.52612257]
[1734384436112,0.41033133,4032.9,4032.7,2.52612257]
[1734384436314,0.7959,4033.2,4032.7,2.52612257]
[1734384436518,0.41021476,4033.1,4032.7,2.52612257]
[1734384436811,0.41021476,4033.0,4032.6,0.784]
[1734384437000,0.41021476,4032.9,4032.6,0.784]
[1734384437199,0.41021476,4032.8,4032.4,3.0]
[1734384437424,0.41021476,4032.7,4032.4,3.0]
[1734384437640,0.80150602,4033.4,4032.4,3.0]
[1734384437641,0.22789709,4032.6,4032.4,3.0]
[1734384437839,0.55,4033.3,4032.4,3.0]
[1734384438012,0.72530897,4033.2,4032.4,3.0]
[1734384438345,0.41019419,4033.1,4032.4,3.0]
[1734384438540,0.41019419,4033.0,4032.4,3.0]
[1734384438753,0.41019419,4032.9,4032.4,3.0]
[1734384438908,0.41019419,4032.8,4032.4,3.0]
[1734384439107,0.41019419,4032.7,4032.4,3.0]
[1734384439326,0.16665052,4033.1,4032.4,3.0]
[1734384439527,0.41013171,4033.0,4032.4,3.0]
[1734384439843,0.41013171,4032.9,4032.4,3.0]
[1734384440018,0.16665052,4033.1,4032.4,3.0]
[1734384440019,0.41013171,4032.8,4032.4,3.0]
[1734384440219,0.41013171,4032.7,4032.4,3.0]
[1734384440447,0.22785095,4032.6,4032.4,3.0]
[1734384440652,0.55,4033.0,4032.4,3.0]
[1734384440832,0.54260568,4032.9,4032.4,3.0]
[1734384440999,0.4102409,4032.8,4032.4,3.0]
[1734384441200,0.41024814,4032.7,4032.4,3.0]
[1734384441441,0.41024814,4032.6,4032.4,3.0]
[1734384441613,0.22791885,4032.5,4032.4,3.0]
[1734384441941,0.22791217,4032.5,4032.4,3.0]
[1734384442143,0.13236478,4032.9,4032.4,3.0]
[1734384442351,0.41022985,4032.8,4032.4,3.0]
[1734384442654,0.41022985,4032.7,4032.4,3.0]
[1734384442811,0.22790553,4032.6,4032.4,3.0]
[1734384443014,0.55,4033.3,4032.4,3.0]
[1734384443209,0.55,4033.1,4032.4,3.0]
[1734384443550,1.3228,4032.9,4032.1,0.02969]
[1734384443749,0.55,4032.7,4032.1,0.02969]
[1734384443912,0.41023314,4032.6,4032.1,0.02969]
[1734384444111,0.41023314,4032.5,4032.1,0.02969]
[1734384444448,0.22787168,4032.4,4032.1,0.02969]
[1734384444607,0.18229734,4032.4,4032.1,0.02969]
[1734384444809,0.22787168,4032.3,4032.1,0.02969]
[1734384445019,0.19791883,4032.6,4032.1,0.02969]
[1734384445236,0.55089604,4032.5,4032.1,0.02969]
[1734384445441,0.41047711,4032.4,4032.1,0.02969]
[1734384445709,0.41047711,4032.3,4032.1,0.02969]
[1734384445915,0.41047711,4032.2,4032.1,0.02969]
[1734384447121,0.41047711,4032.2,4032.1,3.02969]
[1734384447447,0.65627044,4032.8,4032.1,3.02969]
[1734384447648,0.41072815,4032.7,4032.2,0.8052]
[1734384447854,0.41072815,4032.6,4032.2,0.8052]
[1734384448008,0.97176014,4033.2,4032.2,0.8052]
[1734384448009,0.41072815,4032.5,4032.2,0.8052]
[1734384448216,0.22822466,4032.4,4032.2,0.8052]
[1734384448427,0.36459469,4033.1,4032.2,0.8052]
[1734384448652,0.29207335,4033.5,4032.2,0.8052]
[1734384448653,0.41081009,4032.8,4032.2,0.8052]
[1734384448851,0.41081009,4032.7,4032.2,0.8052]
[1734384449062,0.41081009,4032.6,4032.2,0.8052]
[1734384449215,0.41081009,4032.5,4032.2,0.8052]
[1734384449422,0.41081009,4032.4,4032.2,0.8052]
[1734384449656,0.41081009,4032.3,4032.2,0.8052]
[1734384449816,0.36459469,4033.1,4032.2,0.8052]
[1734384450021,0.55,4032.9,4032.2,0.8052]
[1734384450336,0.41107993,4032.8,4032.2,0.8052]
[1734384450508,0.41107993,4032.7,4032.2,0.8052]
[1734384450714,0.41107993,4032.6,4032.2,0.8052]
[1734384450910,0.55,4032.9,4032.2,0.8052]
[1734384450911,0.41116547,4032.5,4032.2,0.8052]
[1734384451232,0.22842526,4032.4,4032.2,0.8052]
[1734384451426,0.22843453,4032.8,4032.2,0.8052]
[1734384451619,0.22849478,4032.7,4032.2,0.8052]
[1734384451955,0.22849478,4032.6,4032.2,0.8052]
[1734384452156,0.22849478,4032.5,4032.2,0.8052]
[1734384452313,0.22849478,4032.4,4032.2,0.8052]
[1734384452515,0.55,4032.9,4032.2,0.8052]
[1734384452749,0.22852434,4032.8,4032.2,0.8052]
[1734384452952,0.22852434,4032.7,4032.2,0.8052]
[1734384453155,0.22852434,4032.6,4032.2,0.8052]
[1734384453320,0.22852434,4032.5,4032.2,0.8052]
[1734384453519,0.55,4032.9,4032.2,0.8052]
[1734384453755,0.22846957,4032.8,4032.2,0.8052]
[1734384453958,0.22846957,4032.7,4032.2,0.8052]
[1734384454160,0.22845175,4032.6,4032.2,0.8052]
[1734384454363,0.22845175,4032.8,4032.2,0.8052]
[1734384454544,0.22845167,4032.7,4032.2,0.8052]
[1734384454754,0.22845167,4032.6,4032.5,5.52612257]
[1734384454931,0.22845167,4032.6,4032.2,3.8052]
[1734384455118,0.7865,4033.1,4032.2,3.8052]
[1734384455427,0.22842205,4033.0,4032.2,3.8052]
[1734384455625,0.7865,4033.1,4032.2,3.8052]
[1734384455626,0.22842205,4032.9,4032.2,3.8052]
[1734384455867,0.22842205,4032.8,4032.2,3.8052]
[1734384456166,0.22842205,4032.7,4032.2,3.8052]
[1734384456345,0.22842205,4032.6,4032.2,3.8052]
[1734384456553,0.22842205,4032.5,4032.2,3.8052]
[1734384456857,0.55,4033.0,4032.2,3.8052]
[1734384457027,0.39862272,4032.9,4032.2,3.8052]
[1734384457262,0.22842044,4032.8,4032.2,3.8052]
[1734384457589,0.22842044,4032.7,4032.2,3.8052]
[1734384457885,0.22842044,4032.6,4032.2,3.8052]
[1734384458050,0.22842044,4032.5,4032.2,3.8052]
[1734384458383,0.17020228,4032.9,4032.2,3.8052]
[1734384458680,0.22841195,4032.8,4032.2,3.8052]
[1734384458848,0.22841195,4032.7,4032.2,3.8052]
[1734384459038,0.22841195,4032.6,4032.2,3.0]
[1734384459235,0.36552281,4033.4,4032.6,3.0]
[1734384459490,0.25675928,4034.0,4033.1,3.7559]
[1734384459491,0.22843555,4033.3,4033.1,3.7559]
[1734384459697,0.22843555,4033.2,4033.1,3.7559]
[1734384460477,1.01944182,4034.0,4033.1,3.7559]
[1734384460686,1.3185,4033.8,4032.7,3.0]
[1734384460943,0.55,4033.6,4032.7,3.0]
[1734384461288,0.59398581,4033.5,4032.7,3.0]
[1734384461595,0.59398581,4033.4,4032.7,3.0]
[1734384461752,0.59398581,4033.3,4032.7,3.0]
[1734384461939,0.22845608,4033.2,4032.7,3.0]
[1734384462146,0.22845608,4033.2,4032.1,0.02969]
[1734384462147,1.91648581,4033.1,4032.2,0.8142]
[1734384462354,0.59398581,4033.0,4032.2,0.8142]
[1734384462553,0.59398581,4032.9,4032.2,0.8142]
[1734384462787,0.59398581,4032.8,4032.2,0.8142]
[1734384462986,0.22845608,4032.7,4032.2,0.8142]
[1734384463200,0.22845608,4032.6,4032.2,0.8142]
[1734384463343,1.3225,4033.1,4032.2,0.8142]
[1734384463344,0.22845608,4032.5,4032.2,0.8142]
[1734384463685,0.22845608,4032.4,4032.2,0.8142]
[1734384463841,0.36552973,4032.9,4032.2,0.8142]
[1734384464043,0.22868832,4032.8,4032.2,0.8142]
[1734384464279,0.22868832,4032.7,4032.1,0.02969]
[1734384464472,0.22868832,4032.6,4032.1,0.02969]
[1734384464685,0.22868832,4032.5,4032.1,0.02969]
[1734384464864,1.04298832,4032.4,4032.1,0.02969]
[1734384465185,0.73506986,4032.3,4032.1,0.02969]
[1734384465395,0.22868832,4032.2,4032.1,0.02969]
[1734384466149,0.59421805,4032.2,4032.1,0.02969]
[1734384467102,0.22868832,4032.2,4032.1,0.02969]
[1734384467271,0.59421805,4032.2,4032.1,0.02969]
[1734384467457,0.22868832,4032.2,4032.1,0.02969]
[1734384467790,0.59421805,4032.2,4032.1,0.02969]
[1734384468299,0.22868832,4032.2,4032.1,0.02969]
[1734384468476,0.59421805,4032.2,4032.1,0.02969]
[1734384468653,0.22868832,4032.2,4032.1,0.02969]
[1734384468849,0.59421805,4032.2,4032.1,0.02969]
[1734384469085,0.22855367,4032.2,4032.1,0.02969]
[1734384469262,0.59423955,4032.2,4032.1,0.02969]
[1734384469481,0.22855367,4032.2,4032.1,0.02969]
[1734384469663,0.59423955,4032.2,4032.1,0.02969]
[1734384469991,0.36940763,4032.2,4032.1,0.02969]
[1734384470203,0.36938164,4032.2,4032.1,0.02969]
[1734384470383,0.73502593,4032.2,4032.1,0.02969]
[1734384470692,0.36935578,4032.2,4032.1,0.02969]
[1734384470895,0.73495869,4032.2,4032.1,0.02969]
[1734384471062,0.36935578,4032.2,4032.1,0.02969]
[1734384471249,0.73495869,4032.2,4032.1,0.02969]
[1734384471450,0.36935578,4032.2,4032.1,0.02969]
[1734384473263,0.14085396,4032.2,4032.1,0.02969]
[1734384473468,0.36933384,4032.2,4032.1,0.02969]
[1734384473662,0.36933384,4032.2,4032.1,0.81329]
[1734384473862,1.01944182,4033.5,4032.2,0.7836]
[1734384474076,0.59417813,4033.4,4033.1,2.52612257]
[1734384474286,0.7533,4033.6,4033.1,2.52612257]
[1734384474287,0.22853005,4033.3,4033.1,3.30972257]
[1734384474447,0.22853005,4033.2,4033.1,3.30972257]
[1734384476504,0.22849495,4033.2,4033.1,3.30972257]
[1734384478837,0.7865,4033.9,4033.1,3.30972257]
[1734384479007,0.2284759,4033.8,4033.1,3.30972257]
[1734384479208,0.2284759,4033.7,4033.1,3.30972257]
[1734384479412,0.2284759,4033.6,4033.1,3.30972257]
[1734384479644,0.2284759,4033.5,4033.1,3.30972257]
[1734384479944,0.22844575,4033.4,4033.1,3.30972257]
[1734384480098,0.7865,4033.9,4033.1,3.30972257]
[1734384480295,2.29673162,4033.8,4033.2,3.0]
[1734384480502,1.07481023,4033.7,4033.2,3.0]
[1734384480743,0.22844222,4033.6,4033.2,3.0]
[1734384480941,0.22844222,4033.5,4033.2,3.0]
[1734384481119,0.22844222,4033.4,4033.2,3.0]
[1734384481311,0.22844222,4033.3,4033.2,3.0]
[1734384481913,1.80594182,4033.9,4033.2,3.0]
[1734384482126,1.07484598,4033.8,4033.2,3.0]
[1734384482335,0.22839619,4033.7,4033.2,3.0]
[1734384482521,0.22839619,4033.6,4032.8,0.8044]
[1734384482722,0.22839619,4033.5,4032.8,0.8044]
[1734384482924,0.22839619,4033.4,4032.7,3.0]
[1734384483249,1.00269619,4033.3,4032.7,3.0]
[1734384483405,0.22839619,4033.2,4032.7,3.0]
[1734384483604,0.22839619,4033.1,4032.7,3.0]
[1734384483950,0.22839619,4033.0,4032.7,3.0]
[1734384484151,0.55,4033.4,4032.7,3.0]
[1734384484447,1.24776109,4033.3,4032.7,3.0]
[1734384484747,1.07460044,4033.2,4032.7,3.0]
[1734384484942,0.22831927,4033.1,4032.7,3.0]
[1734384485148,1.96081277,4033.4,4032.7,3.0]
[1734384485302,2.34382698,4033.3,4032.7,3.0]
[1734384485510,3.36312613,4033.2,4032.7,3.0]
[1734384485856,0.66489075,4033.3,4032.7,3.0]
[1734384485857,0.22830323,4033.1,4032.7,3.0]
[1734384486049,0.22830323,4033.0,4032.7,3.0]
[1734384486216,0.22830323,4032.9,4032.7,3.0]
[1734384486415,0.22830323,4032.8,4032.7,3.0]
[1734384486740,0.815,4032.9,4032.1,0.02969]
[1734384486905,0.55,4032.6,4032.1,0.02969]
[1734384487108,0.55,4032.4,4032.1,0.02969]
[1734384487325,0.22830323,4032.3,4032.1,0.02969]
[1734384487534,0.22830323,4032.2,4032.1,0.02969]
[1734384488335,2.38184182,4032.2,4032.1,0.02969]
[1734384488670,4.09653851,4032.2,4032.1,0.02969]
[1734384488849,5.90928273,4032.2,4032.1,0.02969]
[1734384489060,6.13744863,4032.2,4032.1,0.02969]
[1734384489204,4.09651577,4032.2,4032.1,0.02969]
[1734384489409,5.78760762,4032.2,4032.1,0.02969]
[1734384489841,4.09573648,4032.2,4032.1,0.02969]
[1734384490048,5.62936564,4032.2,4032.1,0.02969]
[1734384490213,5.78760762,4032.2,4032.1,0.02969]
[1734384490558,4.09573648,4032.2,4032.1,0.02969]
[1734384491755,5.62847707,4032.2,4032.1,0.02969]
[1734384491911,5.78760762,4032.2,4032.1,0.02969]
[1734384492306,4.09573648,4032.2,4032.1,0.02969]
[1734384492506,5.6280978,4032.2,4032.1,0.02969]
[1734384492751,4.09573648,4032.2,4032.1,0.02969]
[1734384493402,5.62530646,4032.2,4032.1,0.02969]
[1734384493612,4.0931626,4032.2,4032.1,0.02969]
[1734384493906,5.78222501,4032.2,4032.1,0.02969]
[1734384494106,5.62485006,4032.2,4032.1,0.02969]
[1734384494303,5.62449202,4032.2,4032.1,0.02969]
[1734384494807,8.15061459,4032.2,4032.1,0.02969]
[1734384495323,8.30712111,4032.2,4032.1,0.02969]
[1734384495525,10.57578369,4032.2,4032.1,0.02969]
[1734384495851,8.53485083,4032.2,4032.1,0.02969]
[1734384496621,8.53390203,4032.2,4032.1,0.02969]
[1734384497024,8.37708706,4032.2,4032.1,0.02969]
[1734384499511,8.37690281,4032.2,4032.1,0.02969]
[1734384500556,8.37565306,4032.2,4032.1,0.02969]
[1734384501454,6.84478947,4032.2,4032.1,0.02969]
[1734384501635,8.14792054,4032.2,4032.1,0.02969]
[1734384501821,6.61705695,4032.2,4032.1,0.02969]
[1734384502350,9.61705695,4032.2,4032.1,0.02969]
[1734384502556,9.38951148,4032.2,4032.1,0.02969]
[1734384502768,9.6170307,4032.2,4032.1,0.02969]
[1734384503219,6.6170307,4032.2,4032.1,0.02969]
[1734384504022,8.14789429,4032.2,4032.1,0.02969]
[1734384504462,6.6170307,4032.2,4032.1,0.02969]
[1734384505941,6.61699917,4032.2,4032.1,0.02969]
[1734384506718,4.0908766,4032.2,4032.1,0.02969]
[1734384506923,5.1108356,4032.2,4032.1,0.02969]
[1734384507424,4.0908766,4032.2,4032.1,0.02969]
[1734384509523,3.86338891,4032.2,4032.1,0.02969]
[1734384510172,2.82521975,4032.2,4032.1,0.02969]
[1734384510350,4.0903673,4032.2,4032.1,0.02969]
[1734384510755,2.82521975,4032.2,4032.1,0.02969]
[1734384511053,3.29903076,4032.2,4032.1,0.02969]
[1734384511426,1.25156863,4032.2,4032.1,0.02969]
[1734384511781,0.95999262,4032.2,4032.1,0.02969]
[1734384512472,1.25156863,4032.2,4032.1,0.02969]
[1734384513243,1.25263612,4032.2,4032.1,0.02969]
[1734384513645,2.09614135,4032.2,4032.1,0.02969]
[1734384513854,5.98401683,4032.2,4032.1,0.02969]
[1734384514172,8.60367548,4032.2,4032.1,0.02969]
[1734384514333,8.60367548,4032.2,4031.1,0.7687]
[1734384514537,0.55,4032.0,4031.1,0.7687]
[1734384514739,0.55,4031.8,4031.1,0.7687]
[1734384514931,0.55,4031.6,4031.1,0.7687]
[1734384515255,0.55,4031.4,4031.1,0.7687]
[1734384515462,0.55,4031.2,4031.1,0.7687]
[1734384515643,0.9606315,4031.2,4031.1,0.7687]
[1734384516437,1.25263612,4031.2,4031.1,0.7687]
[1734384516664,0.47610017,4031.2,4031.1,0.7687]
[1734384516848,0.41201357,4031.2,4031.1,0.7687]
[1734384518735,0.70499829,4031.2,4031.1,0.7687]
[1734384518930,0.41201357,4031.2,4031.1,0.7687]
[1734384520240,0.22889812,4031.2,4031.1,0.7687]
[1734384520568,0.41215564,4031.2,4031.1,0.7687]
[1734384521103,0.70536767,4031.2,4031.1,0.7687]
[1734384521331,0.70536767,4031.2,4029.2,1.03752935]
[1734384521332,0.70536767,4031.2,4029.7,3.0]
[1734384521442,0.70536767,4031.1,4029.8,0.7668]
[1734384521643,0.70536767,4031.0,4029.8,0.7668]
[1734384521889,0.70536767,4030.9,4029.8,0.7668]
[1734384522057,0.70536767,4030.8,4029.8,0.7668]
[1734384522264,0.41215564,4030.7,4029.8,0.7668]
[1734384522461,0.41215564,4030.6,4029.8,0.7668]
[1734384522670,0.18325752,4030.5,4029.8,0.7668]
[1734384522960,0.84321203,4031.4,4029.8,0.7668]
[1734384523290,0.70549917,4031.3,4029.8,0.7668]
[1734384523462,0.70549917,4031.2,4029.8,0.7668]
[1734384523666,0.70549917,4031.1,4029.8,0.7668]
[1734384523862,0.70549917,4031.0,4029.8,0.7668]
[1734384524067,0.70549917,4030.9,4030.0,2.52612257]
[1734384524267,0.70549917,4030.8,4030.2,0.7668]
[1734384524575,0.41230471,4030.7,4030.4,0.799]
[1734384524780,0.18324654,4030.6,4030.5,3.799]
[1734384524961,0.29319446,4032.0,4030.6,0.799]
[1734384525283,0.796,4032.1,4030.5,3.3050845]
[1734384525284,1.25553457,4031.9,4030.8,0.799]
[1734384525496,0.70553457,4031.8,4030.9,0.85210441]
[1734384525661,0.70553457,4031.7,4030.9,0.85210441]
[1734384525844,0.70553457,4031.6,4030.9,0.85210441]
[1734384526044,0.70553457,4031.5,4030.9,0.85210441]
[1734384526295,0.70553457,4031.4,4030.9,3.85210441]
[1734384526513,0.41234011,4031.3,4031.1,0.8273]
[1734384526679,0.41234011,4031.2,4031.1,0.8273]
[1734384527587,0.18344418,4032.8,4031.1,0.8273]
[1734384527588,0.29319446,4031.8,4031.1,0.85210232]
[1734384527775,0.29319446,4032.9,4031.7,3.0]
[1734384528012,1.81561977,4033.0,4031.7,3.0]
[1734384528013,0.70557704,4032.8,4031.7,3.0]
[1734384528318,1.5517189,4032.7,4031.4,0.8273]
[1734384528520,0.70557704,4032.6,4031.4,0.8273]
[1734384528808,0.70557704,4032.5,4031.4,0.8273]
[1734384529012,0.70557704,4032.4,4031.4,0.8273]
[1734384529213,0.70557704,4032.3,4031.4,0.8273]
[1734384529528,0.47611911,4032.2,4031.4,0.8273]
[1734384529819,0.41202628,4032.1,4031.4,0.8273]
[1734384530116,2.32636359,4033.0,4031.4,0.8273]
[1734384530117,0.41200877,4032.0,4031.4,0.8273]
[1734384530284,0.41200877,4031.9,4031.4,0.8273]
[1734384530476,0.29298373,4032.6,4031.4,0.8273]
[1734384530807,0.70486959,4032.5,4031.4,0.8273]
[1734384531111,0.70486959,4032.4,4031.4,0.8273]
[1734384531315,0.41188586,4032.3,4031.4,0.8273]
[1734384531612,0.41188586,4032.2,4031.4,0.8273]
[1734384531817,0.41188586,4032.1,4031.4,0.8273]
[1734384532003,0.18305934,4032.0,4031.4,0.8273]
[1734384532175,0.29298373,4032.6,4031.4,0.8273]
[1734384532521,0.41168527,4032.5,4031.4,0.8273]
[1734384532814,0.41168122,4032.4,4031.4,0.8273]
[1734384533016,0.41168122,4032.3,4031.4,0.8273]
[1734384533183,0.41168122,4032.2,4031.4,0.8273]
[1734384533389,0.41168122,4032.1,4031.4,0.8273]
[1734384533687,0.18296943,4032.0,4031.4,0.8273]
[1734384533899,0.41163296,4031.9,4031.4,0.8273]
[1734384534084,0.18296943,4031.8,4031.4,0.8273]
[1734384534291,1.0697511,4032.4,4031.4,0.8273]
[1734384534627,0.62043334,4032.3,4031.4,0.8273]
[1734384534785,0.41144625,4032.2,4031.4,0.8273]
[1734384535130,0.41144625,4032.1,4031.4,0.8273]
[1734384535330,0.41144625,4032.0,4031.4,0.8273]
[1734384535623,0.41144625,4031.9,4031.4,0.8273]
[1734384535781,0.20898709,4032.3,4031.4,0.8273]
[1734384536115,1.02011977,4032.7,4032.0,2.52612257]
[1734384536445,0.41147019,4032.6,4032.1,3.7801]
[1734384536715,2.34176359,4033.3,4032.1,3.7801]
[1734384536716,0.29254341,4033.2,4032.1,3.7801]
[1734384536915,0.8109,4033.3,4032.1,3.7801]
[1734384536916,0.41138852,4033.1,4032.1,3.7801]
[1734384537068,0.41138852,4033.0,4032.1,3.7801]
[1734384537273,1.25809376,4032.9,4032.1,0.7801]
[1734384537497,0.41138852,4032.8,4032.1,0.7801]
[1734384537804,0.41138852,4032.7,4032.1,0.7801]
[1734384537998,0.41138852,4032.6,4032.1,0.7801]
[1734384538197,0.41138852,4032.5,4032.1,0.7801]
[1734384538516,0.30970219,4032.9,4032.1,0.7801]
[1734384538517,0.41138852,4032.4,4032.1,0.7801]
[1734384538720,0.41129633,4032.3,4032.1,0.7801]
[1734384538939,0.8109,4032.7,4032.1,0.7801]
[1734384539214,0.55255431,4032.6,4032.1,0.7801]
[1734384539417,0.14131456,4032.6,4032.1,0.7801]
[1734384539573,0.41121892,4032.5,4032.1,0.7801]
[1734384539775,0.41121892,4032.5,4031.6,3.0]
[1734384539776,0.22842552,4032.4,4031.7,0.8147]
[1734384540085,0.18275664,4032.3,4031.7,0.8147]
[1734384540291,0.14131456,4032.6,4031.7,0.8147]
[1734384540503,0.41112115,4032.5,4031.7,0.8147]
[1734384540684,0.41112115,4032.4,4031.7,0.8147]
[1734384540891,0.41112115,4032.3,4031.7,0.8147]